Cogmind - Beta 15 @@@ ROGUE MODE // 2025.05.11 @ 01:20:36 Player: FloorSandwich Result: Destroyed by D-53 Grenadier with Mini Grenade Launcher Performance ------------- Evolutions (0) 0 Regions Visited (2) 400 Robots Destroyed (10) 50 Value Destroyed (264) 264 Prototype IDs (0) 0 Alien Tech Used (0) 0 Bonus (0) 0 TOTAL SCORE: 714 Bonus ------- None Cogmind --------- Core Integrity 0/250 Matter 278/300 Energy 265/265 System Corruption 0% Temperature Cool (0) Movement Core (800) Ox15 Location -10/Mines Parts ------- > --- POWER (1) -------- Improved Ion Engine > --- PROPULSION (2) --- (None) > --- UTILITY (2) ------ High-capacity Storage Unit > --- WEAPON (2) ------- (None) > --- INVENTORY (20) --- Light Ion Engine Improved Ion Engine Improved Ion Engine Light Assault Rifle Light Cannon Light Cannon Peak State ------------ > --- POWER ------------ Improved Ion Engine > --- PROPULSION ------- Aluminum Leg Aluminum Leg > --- UTILITY ---------- Improved Heat Sink Small Storage Unit > --- WEAPON ----------- EM Pulse Gun Light Assault Rifle > --- INVENTORY -------- Ion Engine Ion Engine Improved Ion Engine Aluminum Leg [Rating: 10] Favorites ----------- Power Improved Ion Engine Engine Improved Ion Engine Propulsion Aluminum Leg Leg Aluminum Leg Utility Improved Heat Sink Device Improved Heat Sink Storage High-capacity Storage Unit Weapon EM Pulse Gun Energy Gun EM Pulse Gun Ballistic Gun Light Assault Rifle Build | -11 -10 -10 ------- Run | Yrd Mat Min Slots Evolved . | . . . Power . | . . . Propulsion . | . . . Utility . | . . . Weapon . | . . . Parts Attached 14 | 6 6 2 Power 2 | 1 1 . Engine 2 | 1 1 . Core . | . . . Reactor . | . . . Propulsion 4 | 2 2 . Treads . | . . . Leg 4 | 2 2 . Wheel . | . . . Hover . | . . . Flight . | . . . Utility 3 | 1 2 . Device 1 | . 1 . Storage 2 | 1 1 . Processor . | . . . Hackware . | . . . Protection . | . . . Artifact . | . . . Weapon 5 | 2 1 2 Energy Gun 2 | 2 . . Energy Cannon . | . . . Ballistic Gun 3 | . 1 2 Ballistic Cannon . | . . . Launcher . | . . . Special Weapon . | . . . Impact Weapon . | . . . Slashing Weapon . | . . . Piercing Weapon . | . . . Special Melee Weapon . | . . . Unidentified Prototypes . | . . . Parts Lost 7 | . 1 6 Power . | . . . Propulsion 2 | . . 2 Utility 1 | . . 1 Weapon 4 | . 1 3 Highest Loss Streak 6 | . 1 6 To Critical Strikes . | . . . Average Backups 4 | 3 3 6 Power 2 | . 2 3 Propulsion . | . . . Utility . | . . . Weapon 1 | . . 3 Tool/Special . | . . . Unused Backups 9 | 2 2 5 Power 4 | . 1 3 Propulsion 2 | 2 . . Utility 1 | . 1 . Weapon 2 | . . 2 Tool/Special . | . . . Average Slot Usage (%) 95 | . 96 92 Engine 14 | . 14 14 Leg 27 | . 28 24 Device 11 | . 11 11 Storage 14 | . 14 14 Energy Gun 15 | . 16 11 Ballistic Gun 11 | . 11 15 Peak Build Rating 10 | 6 10 10 Average Rating 8 | 3 9 9 On Entrance 5 | . 6 10 Naked Turns . | . . . Heaviest Build 51 | 14 51 51 Greatest Support 20 | 20 20 20 Greatest Overweight (x) 2 | 1 2 2 Average Overweight (x) . | . 1 2 Largest Inventory Capacity 20 | 8 20 20 Average Capacity 15 | 5 15 20 Most Carried 7 | 5 7 7 Average Carried 4 | 3 3 6 Final Capacity 20 | 8 20 20 Final Carried 7 | 2 7 6 Class Distribution -------------------- 100% | Mutant Dominant Class ---------------- Mutant | -10/Materials Mutant | -10/Mines Resources | -11 -10 -10 ----------- Run | Yrd Mat Min Matter Collected 326 | 247 79 . Remotely . | . . . Salvage Created 382 | . 382 . Parts 25 | . 25 . Haulers Intercepted 1 | . 1 . Recyclers Shooed 1 | . 1 . Parts Field Recycled . | . . . Retrieved Matter . | . . . Parts Self-Destructed . | . . . Prevented . | . . . Kills | -11 -10 -10 ------- Run | Yrd Mat Min Combat Hostiles Destroyed 6 | . 6 . Guns 5 | . 5 . AOE 1 | . 1 . Classes Destroyed 5 | . 5 . Worker 1 | . 1 . Builder 1 | . 1 . Hauler 1 | . 1 . Watcher 1 | . 1 . Grunt 6 | . 6 . Best Kill Streak 3 | . 3 . Combat Bots Only 2 | . 2 . Max Kills in Single Turn 1 | . 1 . Gunslinging . | . . . Exploded 1 | . 1 . Melee . | . . . Uniques/NPCs Destroyed . | . . . Combat | -11 -10 -10 -------- Run | Yrd Mat Min Hostile Shots Fired 53 | . 20 33 Missed 10 | . 3 7 Hits 43 | . 17 26 Melee 6 | . . 6 Projectile 37 | . 17 20 AOE 13 | . . 13 Critical Strikes 1 | . 1 . Damage Taken 1013 | . 241 772 Core 258 | . 38 220 Absorbed by Shields . | . . . Core Remaining (%) 100 | 100 . . Volleys Fired 33 | . 23 10 Largest 2 | . 2 2 Hottest 80 | . 80 60 Shots Fired 61 | . 44 17 Gun 61 | . 44 17 Cannon . | . . . Launcher . | . . . Special . | . . . Kinetic 26 | . 13 13 Thermal . | . . . Explosive . | . . . Electromagnetic 35 | . 31 4 Robot Hit Streak 13 | . 13 3 Robot Miss Streak 3 | . 2 3 Penetration Max . | . . . Secondary Targets . | . . . Shots Hit Robots 41 | . 31 10 Core Hits 20 | . 16 4 Critical Kills . | . . . Critical Parts Destroyed . | . . . Critical Strikes . | . . . Melee Attacks . | . . . Impact . | . . . Slashing . | . . . Piercing . | . . . Sneak Attacks . | . . . Combat Hostiles . | . . . Follow-up Attacks . | . . . Damage Inflicted 645 | . 537 108 Guns 515 | . 407 108 Cannons . | . . . Explosions 118 | . 118 . Melee . | . . . Ramming 12 | . 12 . Kinetic 144 | . 57 87 Thermal 118 | . 118 . Explosive . | . . . Electromagnetic 371 | . 350 21 Impact . | . . . Slashing . | . . . Piercing . | . . . Highest Corruption . | . . . Average Corruption . | . . . Corruption Purged . | . . . Corruption Blocked . | . . . Overload Shots . | . . . Overflow Damage . | . . . Projectiles . | . . . Explosions . | . . . Melee . | . . . Knockbacks . | . . . Impact . | . . . Kinetic . | . . . Secondary . | . . . Self-Inflicted Damage 35 | . 35 . Shots 1 | . 1 . Rammed . | . . . Targets Rammed 3 | . 2 1 Kicked 3 | . 2 1 Crushed . | . . . Highest Temperature 123 | . 123 7 Average Temperature 54 | . 58 3 Received Heat Transfer 172 | . 132 40 Siege Activations . | . . . Martial Activations . | . . . Shielding Activations . | . . . Robots Disrupted . | . . . Combat Hostiles . | . . . Robots Corrupted . | . . . Combat Hostiles . | . . . Parts Fried 3 | . 3 . Impact Corruptions . | . . . Robots Melted . | . . . Combat Hostiles . | . . . Parts Melted . | . . . Heat Transferred 200 | . 200 . Parts Sabotaged . | . . . Parts Stolen . | . . . Parts Stripped . | . . . Power Chain Reactions 2 | . 2 . Alert | -11 -10 -10 ------- Run | Yrd Mat Min Maximum Alert Level . | . . . Low Security (%) 100 | 100 100 100 Level 1 . | . . . Level 2 . | . . . Level 3 . | . . . Level 4 . | . . . Level 5 . | . . . High Security . | . . . Max Security . | . . . Peak Influence 71 | . 71 . Initial . | . . . Average 14 | . 18 . Influence Increases 194 | . 194 . Destroy 0b10 Robot/C 120 | . 120 . Destroy 0b10 Robot/NC 20 | . 20 . Destroy Leader 34 | . 34 . Disable Machine 15 | . 15 . Destroy Structure 5 | . 5 . Influence Decreases 194 | . 194 . Time Decay 184 | . 184 . Lost Part 10 | . 10 . Squads Dispatched 2 | . 2 . Investigation 2 | . 2 . Extermination . | . . . Reinforcement . | . . . Assault . | . . . Garrison . | . . . Intercept . | . . . Searches Triggered . | . . . Construction Impeded . | . . . Haulers Reinforced . | . . . Active Scanning Responses . | . . . Cargo Convoy Interrupts . | . . . Stealth | -11 -10 -10 --------- Run | Yrd Mat Min Distress Signals . | . . . Communications Jammed . | . . . Distress Signals . | . . . Times Spotted 19 | . 8 11 Peak Tracking Total 17 | . 2 17 Tactical Retreats 1 | . . 1 Traps | -11 -10 -10 ------- Run | Yrd Mat Min Traps Triggered . | . . . Indirectly . | . . . Trap Hack Attempts . | . . . Triggered . | . . . Disarmed . | . . . Reprogrammed . | . . . Reused . | . . . Traps Extracted . | . . . Installed . | . . . Triggered . | . . . Machines | -11 -10 -10 ---------- Run | Yrd Mat Min Machines Disabled 1 | . 1 . Max in Single Turn 1 | . 1 . Machines Repaired . | . . . Machines Dismantled . | . . . Machines Sabotaged . | . . . Overloaded Fab Kills . | . . . Hacking | -11 -10 -10 --------- Run | Yrd Mat Min Machines Accessed 2 | . 2 . Terminals 2 | . 2 . Fabricators . | . . . Repair Stations . | . . . Recycling Units . | . . . Scanalyzers . | . . . Garrison Access . | . . . Total Hacks 6 | . 6 . Successful 1 | . 1 . Failed 5 | . 5 . Catastrophic . | . . . Database Lockouts . | . . . Manual . | . . . Terminals 6 | . 6 . Fabricators . | . . . Repair Stations . | . . . Recycling Units . | . . . Scanalyzers . | . . . Garrison Access . | . . . Terminal Hacks 1 | . 1 . Alert Level 1 | . 1 . Fabricator Hacks . | . . . Repair Station Hacks . | . . . Recycling Unit Hacks . | . . . Scanalyzer . | . . . Garrison Access Hacks . | . . . Unauthorized Hacks . | . . . Terminals . | . . . Fabricators . | . . . Repair Stations . | . . . Recycling Units . | . . . Scanalyzers . | . . . Garrison Access . | . . . Data Cores Recovered . | . . . Used . | . . . Hacking Detections 2 | . 2 . Full Trace Events 2 | . 2 . Feedback Events . | . . . Feedback Blocked . | . . . Robot Schematics Acquired . | . . . Robots Built . | . . . Authchips . | . . . Time . | . . . Total Robot Build Rating . | . . . Part Schematics Acquired . | . . . Parts Built . | . . . Authchips . | . . . Time . | . . . Total Part Build Rating . | . . . Parts Repaired . | . . . Time . | . . . Parts Recycled . | . . . Recycled Matter . | . . . Retrieved Matter . | . . . Retrieved Components . | . . . Parts Scanalyzed . | . . . Part Schematics Acquired . | . . . Parts Damaged . | . . . Bothacking | -11 -10 -10 ------------ Run | Yrd Mat Min Used RIF Installer . | . . . Robots Hacked . | . . . Non-combat . | . . . Combat . | . . . Robot Hacks Applied . | . . . Relay Couplers Released . | . . . Fabnet Peak Effective % . | . . . Robots Rewired . | . . . Allies Hacked . | . . . Hacks Repelled . | . . . Allies | -11 -10 -10 -------- Run | Yrd Mat Min Total Allies . | . . . Largest Group . | . . . Highest-Rated Group . | . . . Highest-Rated Ally . | . . . Total Orders . | . . . Ally Attacks . | . . . Total Damage . | . . . Kills . | . . . Allies Corrupted . | . . . Allies Melted 1 | . . 1 Intel | -11 -10 -10 ------- Run | Yrd Mat Min Active Infowar (turns) . | . . . Robot Analysis Total . | . . . Derelict Logs Recovered . | . . . Drone Launches . | . . . Drone Recoveries . | . . . Exploration | -11 -10 -10 ------------- Run | Yrd Mat Min Turns Passed 1009 | 113 791 105 Spaces Moved 447 | 101 326 20 Core 45 | 45 . . Treads . | . . . Legs 402 | 56 326 20 Wheels . | . . . Hover . | . . . Flight . | . . . Fastest Speed 50 | 50 120 260 Average Speed 176 | 96 196 260 Slowest Speed 260 | 120 260 260 Overloaded Moves . | . . . Propulsion Burnouts . | . . . Robots Hopped . | . . . Potential Cave-ins . | . . . Cave-ins Triggered . | . . . Exploration Rate (%) 16 | 6 37 7 Regions Visited 2 Branch Regions 1 Pre-discovered Areas . | . . . Known Exits Taken . | . . . Unknown Exits Taken 2 | 1 1 . Scrap Searched . | . . . Spaces Dug . | . . . Terrain Destroyed 4 | . 4 . Melee . | . . . Projectile . | . . . AOE 4 | . 4 . Terrain Rammed . | . . . Walls Destroyed . | . . . Machines Disabled . | . . . Actions | -11 -10 -10 --------- Run | Yrd Mat Min Total 606 | 116 434 56 Wait 82 | . 59 23 Move 445 | 100 325 20 Hop . | . . . Pick Up 20 | 7 13 . Fast Attach 4 | 4 . . Attach 5 | 2 2 1 Detach . | . . . Swap 5 | . 4 1 Drop 9 | 3 6 . Fire 33 | . 23 10 Melee . | . . . Ram . | . . . Kick 3 | . 2 1 Crush . | . . . Escape Stasis . | . . . Rewire . | . . . Trap . | . . . Miscellaneous . | . . . Route ------- -11/Scrapyard -10/Materials -10/Mines History --------- Turn | Location | Event 9 | -11/Scrapyard | Discovered new exit (range 16) 114 | -11/Scrapyard | Entered Materials 306 | -10/Materials | Build established: Mutant 729 | -10/Materials | Discovered new exit (range 11) 905 | -10/Materials | Entered Mines 953 | -10/Mines | Assembled infested the area 958 | -10/Mines | Assisted by a Guerilla fighting off Assembled 1002 | -10/Mines | Core integrity fell below 50% 1008 | -10/Mines | Core integrity fell below 20% 1010 | -10/Mines | Destroyed by D-53 Grenadier with Mini Grenade Launcher Last Messages --------------- EM Pulse Gun destroyed. D-53 Grenadier unfolds itself. Kicked as-24967 out of the way. as-24967 destroyed. Imp. Heat Sink destroyed. as-35091 destroyed. as-68731 destroyed. as-09677 destroyed. as-15857 destroyed. Aluminum Leg destroyed. U-05 Engineer lays Concrete. Aluminum Leg destroyed. U-05 Engineer lays Concrete. U-05 Engineer builds a Wall. U-05 Engineer lays Concrete. The unstable cave ceiling collapses. U-05 Engineer builds a Wall. Assault Rifle destroyed. U-05 Engineer lays Concrete. Assault Rifle destroyed. Map ----- +----------------------------------------------------+ | ?????????????????????????????????????????????????? | | ?????????????????????????????????????????????????? | | ?????????????????????????????????????????????????? | | ?????????????????????????????????????????????????? | | ?????????????????????????????????????????????????? | | ?????????????????????????????????????????????????? | | ?????????????????????????????????????????????????? | | ?????????????????????????????????????????????????? | | ?????????????????????????????????????????????????? | | ?????????????????????????????????????????????????? | | ????????????????????? ????????????????????????? | | ?????????????????????? "????????????????????????? | | ?????????????????????? %????????????????????????? | | ?????????????????????? ????????????????????????? | | ?????????????????????? ????????????????????????? | | ??????????????????????# ????????????????????????? | | ?????????????????????## #???????????????????????? | | ?????????????????????# ###?????????????????????? | | ?????????????????????# u# #?????????????????????? | | ?????????????????????# u# #?????????????????????? | | ?????????????????????# ##????????????????????? | | ?????????????????????# dd ##???????????????????? | | ????????????????????## ##??????????????????? | | ????????????????????# #???? ????????????? | | ????????????????????# # #???????????? | | ????????????????????# @ #????????????? | | ????????????????????# #????????????? | | ???????############## ##????????????? | | % % a ##?????????????? | | ???????###"########### #######??????????????? | | ?????????????????????########????????????????????? | | ?????????????????????????????????????????????????? | | ?????????????????????????????????????????????????? | | ?????????????????????????????????????????????????? | | ?????????????????????????????????????????????????? | | ?????????????????????????????????????????????????? | | ?????????????????????????????????????????????????? | | | | | | | | | | | | | | | | | | | | | | | | | | | +----------------------------------------------------+ Best States ------------- Heat Dissipation 39 Energy Generation 12 Energy Capacity 265 Matter Stores 300 Matter Capacity 300 Sight Range 16 Terrain Scan Density 10 Evasion (%) 55 Item Schematics ----------------- None Robot Schematics ------------------ None Fabricated ------------ Nothing Repaired ---------- Nothing Alien Tech Used ----------------- None Achievements -------------- None Challenges ------------ None Game ------ Seed ReactionKineticShockpuncher Manual? 0 Play Time 00:06:13 Cumulative 8.9 hours Start 2025.05.11 @ 01:15:18 End 2025.05.11 @ 01:20:36 Sessions 1 Manual Loads 0 Difficulty Rogue Special Mode None Game No. 32 Rogue 32 Adventurer 0 Explorer 0 Win Type - Total 0 Types 0/0/0/0/0/0/0/0/0/0 Lore% 6 Gallery% 14 Achievement% 13 Wizard Run 0 Options --------- Layout 0 ASCII 0 Keyboard 0 Movement Arrows Keybinds 0 Fullscreen 1 Font 24/Smallcaps Map View 56x25 Zoom Use 100% Tactical HUD 0 Map Filters NONE Filters NONE Steam 1 RUN: 5c1bbf47-b2df-4e83-81b6-0e9d46f8130b